[Event "Titled Tuesday Blitz April 18 Early 2023"]
[White "Shapiro, Viktor"]
[Black "Kyaw Lay Htaik"]
[WhiteFideId "4175700"]
[BlackFideId "13002007"]
[WhiteElo "2152"]
[BlackElo "2261"]
[Result "0-1"]
[Round "04"]
[TimeControl "180+2"]
[Date "2023.04.18"]
[WhiteClock "0:01:29"]
[BlackClock "0:02:22"]

1. c4 {[%clk 0:02:58]}  Nf6 {[%clk 0:02:59]} 2. Nc3 {[%clk 0:02:58]}  e5 {[%clk 0:02:59]} 3. Nf3 {[%clk 0:02:57]}  Nc6 {[%clk 0:03:00]} 4. a3 {[%clk 0:02:56]}  a5 {[%clk 0:02:58]} 5. g3 {[%clk 0:02:55]}  Bc5 {[%clk 0:02:57]} 6. Bg2 {[%clk 0:02:55]}  O-O {[%clk 0:02:57]} 7. O-O {[%clk 0:02:54]}  d6 {[%clk 0:02:57]} 8. e3 {[%clk 0:02:52]}  h6 {[%clk 0:02:53]} 9. d4 {[%clk 0:02:51]}  Ba7 {[%clk 0:02:50]} 10. h3 {[%clk 0:02:47]}  Bf5 {[%clk 0:02:48]} 11. g4 {[%clk 0:02:45]}  Bh7 {[%clk 0:02:42]} 12. d5 {[%clk 0:02:25]}  Nb8 {[%clk 0:02:36]} 13. e4 {[%clk 0:02:24]}  Nbd7 {[%clk 0:02:35]} 14. b4 {[%clk 0:02:13]}  axb4 {[%clk 0:02:33]} 15. axb4 {[%clk 0:02:04]}  Bxf2+ {[%clk 0:02:32]} 16. Rxf2 {[%clk 0:01:57]}  Rxa1 {[%clk 0:02:33]} 17. Re2 {[%clk 0:01:44]}  c6 {[%clk 0:02:33]} 18. Kh2 {[%clk 0:01:39]}  Qb6 {[%clk 0:02:30]} 19. b5 {[%clk 0:01:29]}  cxd5 {[%clk 0:02:22]} 0-1


[Site "https://www.chess.com"]

[Event "Titled Tuesday Blitz April 18 Early 2023"]
[White "Delorme, Alban"]
[Black "Martin Duque, Jesus"]
[WhiteFideId "623636"]
[BlackFideId "2208954"]
[WhiteElo "2196"]
[BlackElo "2305"]
[Result "1-0"]
[Round "04"]
[TimeControl "180+2"]
[Date "2023.04.18"]
[WhiteClock "0:00:03"]
[BlackClock "0:00:45"]

1. e4 {[%clk 0:03:00]}  c5 {[%clk 0:02:58]} 2. Nf3 {[%clk 0:03:00]}  b6 {[%clk 0:02:58]} 3. c3 {[%clk 0:02:57]}  Bb7 {[%clk 0:02:57]} 4. Bd3 {[%clk 0:02:58]}  g6 {[%clk 0:02:58]} 5. Bc2 {[%clk 0:02:58]}  Bg7 {[%clk 0:02:58]} 6. O-O {[%clk 0:02:58]}  Nf6 {[%clk 0:02:54]} 7. Re1 {[%clk 0:02:58]}  O-O {[%clk 0:02:53]} 8. d4 {[%clk 0:02:57]}  cxd4 {[%clk 0:02:48]} 9. cxd4 {[%clk 0:02:58]}  Nc6 {[%clk 0:02:48]} 10. a3 {[%clk 0:02:50]}  Rc8 {[%clk 0:02:47]} 11. d5 {[%clk 0:02:47]}  Na5 {[%clk 0:02:46]} 12. Nc3 {[%clk 0:02:40]}  Nc4 {[%clk 0:02:44]} 13. b3 {[%clk 0:02:06]}  Nxa3 {[%clk 0:02:32]} 14. Bxa3 {[%clk 0:02:04]}  Rxc3 {[%clk 0:02:29]} 15. Bb2 {[%clk 0:02:05]}  Rc7 {[%clk 0:02:05]} 16. Rxa7 {[%clk 0:02:02]}  Qb8 {[%clk 0:02:05]} 17. Ra1 {[%clk 0:01:54]}  Rfc8 {[%clk 0:02:04]} 18. Bd3 {[%clk 0:01:51]}  d6 {[%clk 0:02:03]} 19. Qd2 {[%clk 0:01:35]}  b5 {[%clk 0:01:43]} 20. Bd4 {[%clk 0:01:24]}  Ba8 {[%clk 0:01:31]} 21. Rac1 {[%clk 0:00:57]}  Nd7 {[%clk 0:01:26]} 22. Bxg7 {[%clk 0:00:52]}  Kxg7 {[%clk 0:01:27]} 23. Rxc7 {[%clk 0:00:39]}  Rxc7 {[%clk 0:01:25]} 24. Nd4 {[%clk 0:00:35]}  b4 {[%clk 0:01:22]} 25. Qg5 {[%clk 0:00:27]}  Ne5 {[%clk 0:01:21]} 26. Nf5+ {[%clk 0:00:10]}  Kh8 {[%clk 0:01:20]} 27. Nxe7 {[%clk 0:00:09]}  Qf8 {[%clk 0:01:16]} 28. Qf6+ {[%clk 0:00:08]}  Qg7 {[%clk 0:01:16]} 29. Qxd6 {[%clk 0:00:08]}  Rxe7 {[%clk 0:01:10]} 30. Qxe7 {[%clk 0:00:08]}  Nxd3 {[%clk 0:01:10]} 31. Qd8+ {[%clk 0:00:05]}  Qg8 {[%clk 0:01:07]} 32. Qf6+ {[%clk 0:00:06]}  Qg7 {[%clk 0:01:07]} 33. Qd8+ {[%clk 0:00:03]}  Qg8 {[%clk 0:01:07]} 34. Qxg8+ {[%clk 0:00:03]}  Kxg8 {[%clk 0:01:07]} 35. Ra1 {[%clk 0:00:02]}  Bb7 {[%clk 0:01:04]} 36. Ra7 {[%clk 0:00:01]}  Nc5 {[%clk 0:01:05]} 37. d6 {[%clk 0:00:01]}  Kf8 {[%clk 0:01:04]} 38. d7 {[%clk 0:00:02]}  Ke7 {[%clk 0:01:04]} 39. Ra5 {[%clk 0:00:01]}  Ne6 {[%clk 0:00:58]} 40. Rb5 {[%clk 0:00:01]}  Bxe4 {[%clk 0:00:57]} 41. Rxb4 {[%clk 0:00:02]}  Kxd7 {[%clk 0:00:55]} 42. Rxe4 {[%clk 0:00:02]}  Kc6 {[%clk 0:00:50]} 43. Re3 {[%clk 0:00:02]}  Nd4 {[%clk 0:00:49]} 44. f3 {[%clk 0:00:03]}  f5 {[%clk 0:00:48]} 45. Kf2 {[%clk 0:00:03]}  f4 {[%clk 0:00:49]} 46. Rd3 {[%clk 0:00:03]}  Kc5 {[%clk 0:00:49]} 47. b4+ {[%clk 0:00:03]}  Kc4 {[%clk 0:00:49]} 48. Rxd4+ {[%clk 0:00:02]}  Kxd4 {[%clk 0:00:49]} 49. Ke2 {[%clk 0:00:03]}  Kc4 {[%clk 0:00:49]} 50. Kd2 {[%clk 0:00:03]}  Kxb4 {[%clk 0:00:50]} 51. Kd3 {[%clk 0:00:03]}  g5 {[%clk 0:00:47]} 52. Ke4 {[%clk 0:00:04]}  Kc3 {[%clk 0:00:47]} 53. Kf5 {[%clk 0:00:04]}  h6 {[%clk 0:00:47]} 54. Kg6 {[%clk 0:00:05]}  Kd2 {[%clk 0:00:47]} 55. Kxh6 {[%clk 0:00:05]}  g4 {[%clk 0:00:47]} 56. fxg4 {[%clk 0:00:05]}  Ke3 {[%clk 0:00:47]} 57. g5 {[%clk 0:00:05]}  Kf2 {[%clk 0:00:46]} 58. g6 {[%clk 0:00:06]}  Kxg2 {[%clk 0:00:47]} 59. g7 {[%clk 0:00:06]}  f3 {[%clk 0:00:47]} 60. h4 {[%clk 0:00:03]}  f2 {[%clk 0:00:46]} 61. g8=Q+ {[%clk 0:00:03]}  Kh1 {[%clk 0:00:47]} 62. Qf7 {[%clk 0:00:03]}  Kg2 {[%clk 0:00:45]} 63. Qxf2+ {[%clk 0:00:03]}  Kxf2 {[%clk 0:00:45]} 64. Kg7 {[%clk 0:00:03]} 1-0


[Site "https://www.chess.com"]

[Event "Titled Tuesday Blitz April 18 Early 2023"]
[White "Perez Gormaz, Matias"]
[Black "Lach, Aleksandra"]
[WhiteFideId "3406342"]
[BlackFideId "1134299"]
[WhiteElo "2362"]
[BlackElo "2111"]
[Result "1-0"]
[Round "04"]
[TimeControl "180+2"]
[Date "2023.04.18"]
[WhiteClock "0:00:04"]
[BlackClock "0:00:13"]

1. e4 {[%clk 0:03:00]}  c5 {[%clk 0:02:58]} 2. Nf3 {[%clk 0:03:00]}  a6 {[%clk 0:02:56]} 3. c3 {[%clk 0:02:56]}  g6 {[%clk 0:02:50]} 4. d4 {[%clk 0:02:56]}  cxd4 {[%clk 0:02:50]} 5. cxd4 {[%clk 0:02:57]}  d5 {[%clk 0:02:51]} 6. e5 {[%clk 0:02:40]}  Bg4 {[%clk 0:02:50]} 7. Nbd2 {[%clk 0:02:38]}  Nc6 {[%clk 0:02:48]} 8. h3 {[%clk 0:02:36]}  Bxf3 {[%clk 0:02:45]} 9. Nxf3 {[%clk 0:02:37]}  Bg7 {[%clk 0:02:40]} 10. Bd3 {[%clk 0:02:37]}  f6 {[%clk 0:02:40]} 11. exf6 {[%clk 0:02:32]}  Nxf6 {[%clk 0:02:33]} 12. O-O {[%clk 0:02:33]}  O-O {[%clk 0:02:34]} 13. Re1 {[%clk 0:02:33]}  Ne8 {[%clk 0:02:19]} 14. Be3 {[%clk 0:02:18]}  Nc7 {[%clk 0:02:18]} 15. Rc1 {[%clk 0:02:13]}  Qd7 {[%clk 0:02:14]} 16. Ng5 {[%clk 0:01:23]}  h6 {[%clk 0:01:53]} 17. Nf3 {[%clk 0:01:15]}  g5 {[%clk 0:01:54]} 18. Bb1 {[%clk 0:01:15]}  Ne6 {[%clk 0:01:42]} 19. Qd3 {[%clk 0:01:05]}  Rxf3 {[%clk 0:01:14]} 20. Qh7+ {[%clk 0:01:05]}  Kf8 {[%clk 0:01:12]} 21. gxf3 {[%clk 0:01:03]}  Nexd4 {[%clk 0:01:08]} 22. Bxd4 {[%clk 0:01:00]}  Nxd4 {[%clk 0:01:08]} 23. Kg2 {[%clk 0:00:53]}  Qd6 {[%clk 0:00:54]} 24. Rc3 {[%clk 0:00:33]}  Qf4 {[%clk 0:00:44]} 25. Rxe7 {[%clk 0:00:30]}  Kxe7 {[%clk 0:00:26]} 26. Qxg7+ {[%clk 0:00:30]}  Ke6 {[%clk 0:00:26]} 27. Qxh6+ {[%clk 0:00:24]}  Kd7 {[%clk 0:00:15]} 28. Qg7+ {[%clk 0:00:24]}  Ke6 {[%clk 0:00:15]} 29. Re3+ {[%clk 0:00:12]}  Kd6 {[%clk 0:00:16]} 30. Qe7+ {[%clk 0:00:07]}  Kc6 {[%clk 0:00:13]} 31. Rc3+ {[%clk 0:00:07]}  Kb5 {[%clk 0:00:12]} 32. Qc5+ {[%clk 0:00:04]}  Ka4 {[%clk 0:00:13]} 33. Ra3# {[%clk 0:00:04]} 1-0


[Site "https://www.chess.com"]

[Event "Titled Tuesday Blitz April 18 Early 2023"]
[White "Koutsin, Sergey"]
[Black "Averjanov, Alexey"]
[WhiteFideId "14101483"]
[BlackFideId "14109867"]
[WhiteElo "2381"]
[BlackElo "2613"]
[Result "0-1"]
[Round "04"]
[TimeControl "180+2"]
[Date "2023.04.18"]
[WhiteClock "0:00:12"]
[BlackClock "0:02:26"]

1. d4 {[%clk 0:03:00]}  d5 {[%clk 0:02:59]} 2. c4 {[%clk 0:03:00]}  dxc4 {[%clk 0:02:59]} 3. e4 {[%clk 0:03:00]}  Nf6 {[%clk 0:02:59]} 4. e5 {[%clk 0:03:00]}  Nd5 {[%clk 0:02:59]} 5. Bxc4 {[%clk 0:03:00]}  Nb6 {[%clk 0:02:59]} 6. Bb3 {[%clk 0:02:59]}  Nc6 {[%clk 0:02:59]} 7. Nf3 {[%clk 0:02:58]}  Bf5 {[%clk 0:02:58]} 8. a3 {[%clk 0:02:48]}  e6 {[%clk 0:02:57]} 9. Nc3 {[%clk 0:02:47]}  Be7 {[%clk 0:02:57]} 10. h3 {[%clk 0:02:47]}  Qd7 {[%clk 0:02:56]} 11. O-O {[%clk 0:02:46]}  O-O-O {[%clk 0:02:55]} 12. Be3 {[%clk 0:02:45]}  Rhg8 {[%clk 0:02:53]} 13. Qe2 {[%clk 0:01:56]}  g5 {[%clk 0:02:52]} 14. g4 {[%clk 0:01:51]}  Bg6 {[%clk 0:02:51]} 15. Rfd1 {[%clk 0:01:50]}  h5 {[%clk 0:02:51]} 16. d5 {[%clk 0:01:37]}  exd5 {[%clk 0:02:48]} 17. Nxd5 {[%clk 0:01:37]}  Nxd5 {[%clk 0:02:47]} 18. Rxd5 {[%clk 0:01:33]}  Qe8 {[%clk 0:02:47]} 19. Rad1 {[%clk 0:00:30]}  hxg4 {[%clk 0:02:45]} 20. hxg4 {[%clk 0:00:30]}  Rh8 {[%clk 0:02:31]} 21. Rxd8+ {[%clk 0:00:19]}  Bxd8 {[%clk 0:02:31]} 22. Bxg5 {[%clk 0:00:16]}  Bxg5 {[%clk 0:02:28]} 23. Nxg5 {[%clk 0:00:16]}  Nxe5 {[%clk 0:02:26]} 24. f4 {[%clk 0:00:12]}  Qc6 {[%clk 0:02:26]} 0-1


[Site "https://www.chess.com"]

[Event "Titled Tuesday Blitz April 18 Early 2023"]
[White "Arias, Juan Cruz"]
[Black "Begunov, Konstantin"]
[WhiteFideId "118540"]
[BlackFideId "4118510"]
[WhiteElo "2243"]
[BlackElo "2087"]
[Result "1-0"]
[Round "04"]
[TimeControl "180+2"]
[Date "2023.04.18"]
[WhiteClock "0:01:19"]
[BlackClock "0:00:02"]

1. e4 {[%clk 0:03:00]}  c5 {[%clk 0:02:52]} 2. Nc3 {[%clk 0:03:00]}  d6 {[%clk 0:02:50]} 3. g3 {[%clk 0:03:00]}  Nc6 {[%clk 0:02:49]} 4. Bg2 {[%clk 0:03:01]}  g6 {[%clk 0:02:50]} 5. d3 {[%clk 0:03:01]}  Bg7 {[%clk 0:02:51]} 6. f4 {[%clk 0:03:01]}  Rb8 {[%clk 0:02:50]} 7. Nf3 {[%clk 0:03:00]}  Bg4 {[%clk 0:02:50]} 8. h3 {[%clk 0:03:00]}  Bxf3 {[%clk 0:02:50]} 9. Qxf3 {[%clk 0:03:01]}  b5 {[%clk 0:02:49]} 10. O-O {[%clk 0:02:59]}  b4 {[%clk 0:02:50]} 11. Nd5 {[%clk 0:03:00]}  e6 {[%clk 0:02:46]} 12. Ne3 {[%clk 0:02:59]}  Nge7 {[%clk 0:02:45]} 13. g4 {[%clk 0:02:59]}  h5 {[%clk 0:02:44]} 14. f5 {[%clk 0:02:58]}  hxg4 {[%clk 0:02:44]} 15. hxg4 {[%clk 0:02:58]}  Nd4 {[%clk 0:02:39]} 16. Qd1 {[%clk 0:02:48]}  gxf5 {[%clk 0:02:32]} 17. c3 {[%clk 0:02:47]}  f4 {[%clk 0:01:54]} 18. cxd4 {[%clk 0:02:37]}  fxe3 {[%clk 0:01:53]} 19. Bxe3 {[%clk 0:02:36]}  cxd4 {[%clk 0:01:46]} 20. Bg5 {[%clk 0:02:36]}  Qa5 {[%clk 0:01:41]} 21. Qd2 {[%clk 0:02:28]}  Ng6 {[%clk 0:01:32]} 22. a3 {[%clk 0:02:22]}  Qe5 {[%clk 0:01:27]} 23. axb4 {[%clk 0:02:04]}  Qh2+ {[%clk 0:01:26]} 24. Kf2 {[%clk 0:02:04]}  Be5 {[%clk 0:01:22]} 25. Rg1 {[%clk 0:01:48]}  Qg3+ {[%clk 0:01:07]} 26. Kf1 {[%clk 0:01:47]}  Qxg4 {[%clk 0:00:56]} 27. Rxa7 {[%clk 0:01:34]}  Rh5 {[%clk 0:00:27]} 28. Bh6 {[%clk 0:01:31]}  Bf4 {[%clk 0:00:16]} 29. Bxf4 {[%clk 0:01:23]}  Nxf4 {[%clk 0:00:17]} 30. e5 {[%clk 0:01:23]}  Rh2 {[%clk 0:00:15]} 31. Bc6+ {[%clk 0:01:22]}  Kf8 {[%clk 0:00:13]} 32. Qxh2 {[%clk 0:01:19]}  Qd1+ {[%clk 0:00:12]} 33. Kf2 {[%clk 0:01:20]}  Nxd3+ {[%clk 0:00:06]} 34. Kg3 {[%clk 0:01:19]}  Qb3 {[%clk 0:00:02]} 35. Qh8# {[%clk 0:01:19]} 1-0


[Site "https://www.chess.com"]

[Event "Titled Tuesday Blitz April 18 Early 2023"]
[White "Petrova, Irina"]
[Black "Sokolovsky, Yahli"]
[WhiteFideId "14124122"]
[BlackFideId "2820242"]
[WhiteElo "2084"]
[BlackElo "2316"]
[Result "0-1"]
[Round "04"]
[TimeControl "180+2"]
[Date "2023.04.18"]
[WhiteClock "0:00:04"]
[BlackClock "0:00:16"]

1. e4 {[%clk 0:03:00]}  d6 {[%clk 0:02:58]} 2. d4 {[%clk 0:02:58]}  Nf6 {[%clk 0:02:59]} 3. Nc3 {[%clk 0:02:59]}  g6 {[%clk 0:03:00]} 4. Be3 {[%clk 0:02:59]}  Bg7 {[%clk 0:03:00]} 5. h3 {[%clk 0:02:57]}  c6 {[%clk 0:02:55]} 6. a4 {[%clk 0:02:43]}  O-O {[%clk 0:02:48]} 7. Bd3 {[%clk 0:02:38]}  e5 {[%clk 0:02:48]} 8. dxe5 {[%clk 0:02:26]}  dxe5 {[%clk 0:02:49]} 9. Nf3 {[%clk 0:02:11]}  Nh5 {[%clk 0:02:49]} 10. Qd2 {[%clk 0:02:07]}  Nf4 {[%clk 0:02:30]} 11. Bxf4 {[%clk 0:01:55]}  exf4 {[%clk 0:02:31]} 12. Qxf4 {[%clk 0:01:55]}  Qb6 {[%clk 0:02:32]} 13. e5 {[%clk 0:01:06]}  Qxb2 {[%clk 0:02:23]} 14. Kd2 {[%clk 0:01:06]}  Qb6 {[%clk 0:02:16]} 15. Ne4 {[%clk 0:01:06]}  Bf5 {[%clk 0:02:07]} 16. Ke2 {[%clk 0:00:54]}  Bxe4 {[%clk 0:01:51]} 17. Qxe4 {[%clk 0:00:53]}  Nd7 {[%clk 0:01:49]} 18. Rhb1 {[%clk 0:00:48]}  Qc7 {[%clk 0:01:37]} 19. e6 {[%clk 0:00:35]}  Rfe8 {[%clk 0:00:51]} 20. Kf1 {[%clk 0:00:22]}  Rxe6 {[%clk 0:00:50]} 21. Qb4 {[%clk 0:00:16]}  Bxa1 {[%clk 0:00:49]} 22. Rxa1 {[%clk 0:00:17]}  Rae8 {[%clk 0:00:42]} 23. Rb1 {[%clk 0:00:14]}  b6 {[%clk 0:00:42]} 24. Qc3 {[%clk 0:00:13]}  Ne5 {[%clk 0:00:37]} 25. Nd4 {[%clk 0:00:11]}  R6e7 {[%clk 0:00:32]} 26. Bc4 {[%clk 0:00:06]}  Nxc4 {[%clk 0:00:31]} 27. Qxc4 {[%clk 0:00:07]}  Qh2 {[%clk 0:00:28]} 28. f3 {[%clk 0:00:05]}  Re1+ {[%clk 0:00:16]} 29. Rxe1 {[%clk 0:00:04]}  Qh1+ {[%clk 0:00:16]} 0-1


[Site "https://www.chess.com"]

[Event "Titled Tuesday Blitz April 18 Early 2023"]
[White "Ozates, Tuna"]
[Black "Khromkin, Andrey"]
[WhiteFideId "6354521"]
[BlackFideId "4154126"]
[WhiteElo "2151"]
[BlackElo "2392"]
[Result "1-0"]
[Round "04"]
[TimeControl "180+2"]
[Date "2023.04.18"]
[WhiteClock "0:00:50"]
[BlackClock "0:00:01"]

1. e4 {[%clk 0:02:58]}  c5 {[%clk 0:02:59]} 2. Nc3 {[%clk 0:02:56]}  g6 {[%clk 0:02:58]} 3. g3 {[%clk 0:02:54]}  Bg7 {[%clk 0:02:57]} 4. Bg2 {[%clk 0:02:50]}  Nc6 {[%clk 0:02:57]} 5. d3 {[%clk 0:02:44]}  e6 {[%clk 0:02:57]} 6. Be3 {[%clk 0:02:39]}  Nd4 {[%clk 0:02:55]} 7. Qd2 {[%clk 0:02:40]}  Rb8 {[%clk 0:02:48]} 8. Nd1 {[%clk 0:02:38]}  d6 {[%clk 0:02:42]} 9. f4 {[%clk 0:02:34]}  Ne7 {[%clk 0:02:39]} 10. c3 {[%clk 0:02:33]}  Ndc6 {[%clk 0:02:39]} 11. Nf3 {[%clk 0:02:33]}  b5 {[%clk 0:02:38]} 12. O-O {[%clk 0:02:33]}  b4 {[%clk 0:02:37]} 13. g4 {[%clk 0:02:24]}  h5 {[%clk 0:02:18]} 14. g5 {[%clk 0:02:20]}  h4 {[%clk 0:02:13]} 15. h3 {[%clk 0:02:19]}  bxc3 {[%clk 0:02:12]} 16. bxc3 {[%clk 0:02:19]}  Qa5 {[%clk 0:02:11]} 17. Nh2 {[%clk 0:02:16]}  Ba6 {[%clk 0:01:22]} 18. Ng4 {[%clk 0:01:56]}  Qb5 {[%clk 0:01:18]} 19. Nf6+ {[%clk 0:01:40]}  Bxf6 {[%clk 0:01:14]} 20. gxf6 {[%clk 0:01:41]}  Ng8 {[%clk 0:01:11]} 21. e5 {[%clk 0:01:40]}  dxe5 {[%clk 0:00:57]} 22. fxe5 {[%clk 0:01:39]}  Nxe5 {[%clk 0:00:55]} 23. Bf4 {[%clk 0:01:38]}  Nxd3 {[%clk 0:00:41]} 24. Bxb8 {[%clk 0:01:32]}  Qxb8 {[%clk 0:00:42]} 25. c4 {[%clk 0:01:20]}  Ne5 {[%clk 0:00:19]} 26. Ne3 {[%clk 0:01:15]}  Nh6 {[%clk 0:00:15]} 27. Rab1 {[%clk 0:01:14]}  Qc7 {[%clk 0:00:11]} 28. Rfe1 {[%clk 0:00:52]}  Nf5 {[%clk 0:00:10]} 29. Nxf5 {[%clk 0:00:52]}  gxf5 {[%clk 0:00:11]} 30. Qf4 {[%clk 0:00:52]}  Rg8 {[%clk 0:00:01]} 31. Rxe5 {[%clk 0:00:50]} 1-0


[Site "https://www.chess.com"]

[Event "Titled Tuesday Blitz April 18 Early 2023"]
[White "Yelisieiev, Yevhenii"]
[Black "Andreev, Konstantin"]
[WhiteFideId "14139642"]
[BlackFideId "24239305"]
[WhiteElo "2425"]
[BlackElo "2106"]
[Result "1/2-1/2"]
[Round "04"]
[TimeControl "180+2"]
[Date "2023.04.18"]
[WhiteClock "0:00:06"]
[BlackClock "0:00:02"]

1. d4 {[%clk 0:03:00]}  Nf6 {[%clk 0:02:59]} 2. Nf3 {[%clk 0:03:01]}  e6 {[%clk 0:02:57]} 3. c4 {[%clk 0:02:54]}  d5 {[%clk 0:02:57]} 4. Nc3 {[%clk 0:02:52]}  dxc4 {[%clk 0:02:56]} 5. e4 {[%clk 0:02:51]}  b5 {[%clk 0:02:56]} 6. e5 {[%clk 0:02:36]}  Nd5 {[%clk 0:02:56]} 7. Nxb5 {[%clk 0:02:36]}  Nb6 {[%clk 0:02:56]} 8. Be3 {[%clk 0:02:22]}  Nc6 {[%clk 0:02:45]} 9. Be2 {[%clk 0:02:11]}  Be7 {[%clk 0:02:41]} 10. O-O {[%clk 0:02:09]}  O-O {[%clk 0:02:35]} 11. a4 {[%clk 0:01:54]}  a6 {[%clk 0:02:27]} 12. Na3 {[%clk 0:01:47]}  Na5 {[%clk 0:01:54]} 13. Nd2 {[%clk 0:01:31]}  Bb7 {[%clk 0:01:45]} 14. Qc2 {[%clk 0:00:51]}  Rb8 {[%clk 0:01:19]} 15. Qc3 {[%clk 0:00:30]}  Nd5 {[%clk 0:01:11]} 16. Qc2 {[%clk 0:00:20]}  Nxe3 {[%clk 0:00:38]} 17. fxe3 {[%clk 0:00:20]}  c5 {[%clk 0:00:37]} 18. Naxc4 {[%clk 0:00:18]}  Nxc4 {[%clk 0:00:27]} 19. Qxc4 {[%clk 0:00:18]}  Bg5 {[%clk 0:00:15]} 20. Qd3 {[%clk 0:00:13]}  cxd4 {[%clk 0:00:15]} 21. exd4 {[%clk 0:00:13]}  Qd7 {[%clk 0:00:14]} 22. Bf3 {[%clk 0:00:12]}  Rfd8 {[%clk 0:00:12]} 23. Bxb7 {[%clk 0:00:12]}  Rxb7 {[%clk 0:00:12]} 24. Nf3 {[%clk 0:00:12]}  Be7 {[%clk 0:00:08]} 25. Qxa6 {[%clk 0:00:12]}  Rxb2 {[%clk 0:00:08]} 26. Qd3 {[%clk 0:00:12]}  h6 {[%clk 0:00:07]} 27. a5 {[%clk 0:00:12]}  Qa7 {[%clk 0:00:06]} 28. a6 {[%clk 0:00:12]}  Bc5 {[%clk 0:00:06]} 29. Rfd1 {[%clk 0:00:11]}  Bb6 {[%clk 0:00:04]} 30. Qc3 {[%clk 0:00:10]}  Rb5 {[%clk 0:00:04]} 31. Ra4 {[%clk 0:00:09]}  Rbd5 {[%clk 0:00:04]} 32. Kh1 {[%clk 0:00:08]}  R8d7 {[%clk 0:00:04]} 33. Qc8+ {[%clk 0:00:07]}  Kh7 {[%clk 0:00:04]} 34. Qc2+ {[%clk 0:00:08]}  Kg8 {[%clk 0:00:03]} 35. Qc6 {[%clk 0:00:08]}  Rd8 {[%clk 0:00:04]} 36. Rb1 {[%clk 0:00:07]}  Rb8 {[%clk 0:00:04]} 37. h3 {[%clk 0:00:07]}  Rdd8 {[%clk 0:00:02]} 38. Rab4 {[%clk 0:00:07]}  Rdc8 {[%clk 0:00:03]} 39. Qa4 {[%clk 0:00:06]}  Rd8 {[%clk 0:00:01]} 40. Qc6 {[%clk 0:00:06]}  Rdc8 {[%clk 0:00:01]} 41. Qd6 {[%clk 0:00:06]}  Rd8 {[%clk 0:00:02]} 42. Qc6 {[%clk 0:00:06]} 1/2-1/2


[Site "https://www.chess.com"]

[Event "Titled Tuesday Blitz April 18 Early 2023"]
[White "Mika, Tomasz"]
[Black "Sreyas Payyappat"]
[WhiteFideId "1132970"]
[BlackFideId "46674969"]
[WhiteElo "2179"]
[BlackElo "2083"]
[Result "1-0"]
[Round "04"]
[TimeControl "180+2"]
[Date "2023.04.18"]
[WhiteClock "0:00:09"]
[BlackClock "0:00:08"]

1. Nf3 {[%clk 0:03:00]}  Nf6 {[%clk 0:02:58]} 2. c4 {[%clk 0:03:00]}  c5 {[%clk 0:02:58]} 3. Nc3 {[%clk 0:03:00]}  Nc6 {[%clk 0:02:57]} 4. g3 {[%clk 0:02:58]}  g6 {[%clk 0:02:57]} 5. Bg2 {[%clk 0:02:58]}  Bg7 {[%clk 0:02:57]} 6. O-O {[%clk 0:02:58]}  O-O {[%clk 0:02:57]} 7. d4 {[%clk 0:02:58]}  cxd4 {[%clk 0:02:57]} 8. Nxd4 {[%clk 0:02:57]}  Qa5 {[%clk 0:02:58]} 9. Re1 {[%clk 0:02:33]}  Qh5 {[%clk 0:02:40]} 10. Nc2 {[%clk 0:02:16]}  d6 {[%clk 0:02:32]} 11. Ne3 {[%clk 0:02:11]}  Ne5 {[%clk 0:02:25]} 12. Ncd5 {[%clk 0:02:08]}  Nxd5 {[%clk 0:02:04]} 13. Nxd5 {[%clk 0:02:08]}  Kh8 {[%clk 0:01:53]} 14. Nf4 {[%clk 0:01:49]}  Qf5 {[%clk 0:01:49]} 15. Qb3 {[%clk 0:01:29]}  Qd7 {[%clk 0:01:22]} 16. Bd2 {[%clk 0:01:12]}  Rb8 {[%clk 0:01:18]} 17. Bc3 {[%clk 0:01:05]}  b5 {[%clk 0:01:12]} 18. cxb5 {[%clk 0:01:04]}  Rxb5 {[%clk 0:01:09]} 19. Qa4 {[%clk 0:01:03]}  Bb7 {[%clk 0:01:00]} 20. Bh3 {[%clk 0:00:52]}  f5 {[%clk 0:00:19]} 21. Red1 {[%clk 0:00:51]}  Rc8 {[%clk 0:00:19]} 22. Qxa7 {[%clk 0:00:31]}  g5 {[%clk 0:00:17]} 23. Nh5 {[%clk 0:00:24]}  Qc6 {[%clk 0:00:15]} 24. f3 {[%clk 0:00:24]}  Nxf3+ {[%clk 0:00:09]} 25. exf3 {[%clk 0:00:24]}  Bxc3 {[%clk 0:00:09]} 26. bxc3 {[%clk 0:00:24]}  Qxf3 {[%clk 0:00:09]} 27. Qd4+ {[%clk 0:00:16]}  e5 {[%clk 0:00:09]} 28. Qxd6 {[%clk 0:00:14]}  Qh1+ {[%clk 0:00:08]} 29. Kf2 {[%clk 0:00:14]}  Qxh2+ {[%clk 0:00:09]} 30. Ke1 {[%clk 0:00:09]}  Qxg3+ {[%clk 0:00:08]} 31. Nxg3 {[%clk 0:00:09]} 1-0


[Site "https://www.chess.com"]

[Event "Titled Tuesday Blitz April 18 Early 2023"]
[White "AyMitecK"]
[Black "Leve, Nitai"]
[BlackFideId "2006898"]
[WhiteElo "2562"]
[BlackElo "2144"]
[Result "1-0"]
[Round "04"]
[TimeControl "180+2"]
[Date "2023.04.18"]
[WhiteClock "0:00:53"]
[BlackClock "0:00:02"]

1. e4 {[%clk 0:03:00]}  e5 {[%clk 0:02:58]} 2. Nf3 {[%clk 0:03:00]}  Nf6 {[%clk 0:02:58]} 3. Nxe5 {[%clk 0:02:59]}  d6 {[%clk 0:02:51]} 4. Nf3 {[%clk 0:02:58]}  Nxe4 {[%clk 0:02:51]} 5. c4 {[%clk 0:02:59]}  Nf6 {[%clk 0:02:50]} 6. d4 {[%clk 0:02:59]}  Be7 {[%clk 0:02:48]} 7. Bd3 {[%clk 0:02:59]}  O-O {[%clk 0:02:48]} 8. Nc3 {[%clk 0:02:57]}  d5 {[%clk 0:02:46]} 9. cxd5 {[%clk 0:02:56]}  Nxd5 {[%clk 0:02:44]} 10. Ne4 {[%clk 0:02:53]}  Nc6 {[%clk 0:02:40]} 11. h4 {[%clk 0:02:50]}  Bg4 {[%clk 0:02:40]} 12. Neg5 {[%clk 0:02:47]}  h6 {[%clk 0:02:36]} 13. Bh7+ {[%clk 0:02:45]}  Kh8 {[%clk 0:02:36]} 14. Qc2 {[%clk 0:02:40]}  Bxf3 {[%clk 0:01:55]} 15. Nxf3 {[%clk 0:02:28]}  Ndb4 {[%clk 0:01:46]} 16. Qb1 {[%clk 0:02:28]}  Nxd4 {[%clk 0:01:44]} 17. Ng5 {[%clk 0:02:21]}  Qd5 {[%clk 0:01:21]} 18. Be4 {[%clk 0:02:03]}  Qc5 {[%clk 0:01:01]} 19. Be3 {[%clk 0:01:57]}  Nbc2+ {[%clk 0:00:59]} 20. Bxc2 {[%clk 0:01:54]}  Nxc2+ {[%clk 0:00:59]} 21. Kf1 {[%clk 0:01:49]}  Nxe3+ {[%clk 0:00:59]} 22. fxe3 {[%clk 0:01:49]}  Bxg5 {[%clk 0:00:46]} 23. hxg5 {[%clk 0:01:47]}  Qxg5 {[%clk 0:00:43]} 24. Rh3 {[%clk 0:01:47]}  Rfe8 {[%clk 0:00:23]} 25. Qc1 {[%clk 0:01:41]}  c6 {[%clk 0:00:20]} 26. Qc3 {[%clk 0:01:34]}  Re6 {[%clk 0:00:18]} 27. Kg1 {[%clk 0:01:33]}  Rae8 {[%clk 0:00:18]} 28. Re1 {[%clk 0:01:31]}  Rg6 {[%clk 0:00:15]} 29. Re2 {[%clk 0:01:28]}  Qd5 {[%clk 0:00:12]} 30. Rf2 {[%clk 0:01:26]}  Qxa2 {[%clk 0:00:09]} 31. b3 {[%clk 0:01:21]}  Qb1+ {[%clk 0:00:07]} 32. Rf1 {[%clk 0:01:19]}  Qe4 {[%clk 0:00:06]} 33. Rf2 {[%clk 0:01:17]}  f6 {[%clk 0:00:04]} 34. Kh1 {[%clk 0:01:16]}  Qe5 {[%clk 0:00:04]} 35. Qd3 {[%clk 0:01:15]}  Rg5 {[%clk 0:00:04]} 36. Qd1 {[%clk 0:01:10]}  Rg3 {[%clk 0:00:04]} 37. Rh5 {[%clk 0:01:08]}  Qxe3 {[%clk 0:00:03]} 38. Rf1 {[%clk 0:01:07]}  Rg5 {[%clk 0:00:04]} 39. Rh2 {[%clk 0:01:06]}  Qe2 {[%clk 0:00:04]} 40. Qa1 {[%clk 0:01:05]}  a6 {[%clk 0:00:03]} 41. Rg1 {[%clk 0:01:04]}  Qf2 {[%clk 0:00:02]} 42. Rf1 {[%clk 0:01:02]}  Qg3 {[%clk 0:00:02]} 43. Rg1 {[%clk 0:00:53]} 1-0


[Site "https://www.chess.com"]